bitfinex/quotes_SOLUSD_20240814
["timestamp","ask_amount","ask_price","bid_price","bid_amount"]
[1723619005284,6.8749,145.46,145.42,24.0679]
[1723619005683,13.87667553,145.52,145.47,6.8738]
[1723619005978,16.1943,145.54,145.47,6.8738]
[1723619005979,6.8724,145.51,145.47,6.8738]
[1723619006177,6.8724,145.51,145.46,24.0611]
[1723619006382,6.8718,145.53,145.46,17.1866]
[1723619006581,19.72477553,145.56,145.48,17.1841]
[1723619006767,6.8706,145.55,145.51,6.8723]
[1723619007084,6.8701,145.56,145.51,8.24653084]
[1723619007288,6.8708,145.55,145.5,24.0544]
[1723619008270,6.871,145.54,145.5,24.0544]
[1723619009471,6.8705,145.55,145.5,24.0544]
[1723619009673,0.25098,145.54,145.47,23.6082]
[1723619009869,0.12549,145.54,145.48,20.0]
[1723619010073,0.25098,145.54,145.48,20.0]
[1723619010373,6.8714,145.53,145.48,6.8733]
[1723619010684,7.12208,145.54,145.49,6.8731]
[1723619010880,45.0,145.53,145.49,6.8731]
[1723619011472,51.8714,145.53,145.49,6.8731]
[1723619011870,51.8714,145.53,145.48,6.8736]
[1723619012668,51.8714,145.53,145.49,6.8732]
[1723619012870,45.0,145.53,145.49,6.8732]
[1723619013993,6.8706,145.55,145.51,6.8723]
[1723619014379,6.8706,145.55,145.5,6.8726]
[1723619014596,6.8706,145.55,145.5,7.45685656]
[1723619014991,6.8706,145.55,145.5,6.8726]
[1723619019899,6.8709,145.54,145.5,6.8726]
[1723619020079,6.8706,145.55,145.5,7.45832381]
[1723619020275,6.8706,145.55,145.51,6.8722]
[1723619021188,6.8701,145.56,145.52,6.8717]
[1723619025193,0.12549,145.57,145.51,17.1805]
[1723619025404,0.12549,145.57,145.5,6.8728]
[1723619025405,6.8712,145.54,145.5,6.8728]
[1723619027102,51.8705,145.55,145.51,6.8722]
[1723619031191,45.0,145.55,145.52,6.8719]
[1723619031992,6.8701,145.56,145.52,6.8719]
[1723619032490,6.8705,145.55,145.51,6.8721]
[1723619035207,12.72,145.56,145.47,23.6076]
[1723619035423,6.8719,145.52,145.48,26.8736]
[1723619035724,6.8719,145.52,145.48,6.8736]
[1723619040314,6.8719,145.52,145.49,6.8733]
[1723619040686,45.0,145.54,145.51,6.8723]
[1723619041017,51.871,145.54,145.5,6.8725]
[1723619041617,6.871,145.54,145.5,6.8725]
[1723619042432,6.8705,145.55,145.49,17.1832]
[1723619042638,6.8705,145.55,145.51,6.8721]
[1723619043626,6.871,145.54,145.5,6.8726]
[1723619045125,6.8706,145.55,145.51,6.8722]
[1723619045936,6.8711,145.54,145.5,6.8727]
[1723619049739,6.8706,145.55,145.51,6.8722]
[1723619050033,15.75939,145.58,145.53,6.8713]
[1723619050338,51.8698,145.57,145.53,6.8713]
[1723619051846,6.8701,145.56,145.52,24.0513]
[1723619052221,45.0,145.57,145.51,6.8721]
[1723619052437,6.8709,145.54,145.5,19.5925]
[1723619052615,6.8709,145.54,145.51,6.8723]
[1723619052942,6.8705,145.55,145.51,6.8723]
[1723619054015,6.8702,145.56,145.52,6.8718]
[1723619054754,45.0,145.57,145.51,17.1805]
[1723619054918,6.8712,145.54,145.51,17.1805]
[1723619055124,0.12549,145.56,145.48,17.1834]
[1723619055422,0.12549,145.56,145.46,6.8744]
[1723619055423,6.8729,145.5,145.46,6.8744]
[1723619055630,28.8178,145.53,145.45,39.1636]
[1723619055816,47.22044181,145.52,145.45,24.0616]
[1723619056018,6.8736,145.49,145.45,24.0616]
[1723619056234,6.8736,145.49,145.45,17.1869]
[1723619056451,12.72,145.49,145.43,6.876]
[1723619056621,6.8746,145.47,145.43,6.876]
[1723619056822,8.59343492,145.47,145.42,6.8765]
[1723619057118,0.37647,145.48,145.41,24.0685]
[1723619057427,6.8748,145.46,145.41,24.0685]
[1723619057829,6.8748,145.46,145.42,6.8766]
[1723619060234,6.8748,145.46,145.4,5.0]
[1723619060235,6.8757,145.44,145.4,5.0]
[1723619060442,6.8761,145.43,145.4,5.0]
[1723619060741,0.12549,145.45,145.4,5.0]
[1723619060742,6.8757,145.44,145.4,5.0]
[1723619061119,7.00069,145.45,145.4,5.0]
[1723619061324,6.875,145.46,145.42,6.8765]
[1723619061543,45.0,145.45,145.42,6.8765]
[1723619062122,51.8752,145.45,145.4,23.56646507]
[1723619062429,6.876,145.44,145.4,22.1935]
[1723619062824,6.8762,145.43,145.4,22.1935]
[1723619063036,6.8762,145.43,145.4,5.0]
[1723619064945,6.8758,145.44,145.4,11.8775]
[1723619068158,6.8763,145.43,145.4,5.0]
[1723619069559,6.8758,145.44,145.4,5.0]
[1723619071372,6.8758,145.44,145.4,11.8775]
[1723619074354,6.8758,145.44,145.4,13.25197428]
[1723619074557,6.8753,145.45,145.41,25.44377975]
[1723619074774,6.8753,145.45,145.41,24.0694]
[1723619084291,45.0,145.44,145.4,5.0]
[1723619084463,0.37647,145.43,145.4,5.0]
[1723619084660,6.8771,145.41,145.4,5.0]
[1723619084883,51.8771,145.41,145.4,5.0]
[1723619087090,52.37906,145.41,145.4,5.0]
[1723619095484,54.09895672,145.41,145.4,2.447]
[1723619096494,52.37906,145.41,145.4,2.447]
[1723619098700,17.189,145.45,145.4,2.447]
[1723619099096,6.8764,145.43,145.4,2.447]
[1723619100108,6.8766,145.42,145.4,2.447]
[1723619101583,35.432,145.48,145.4,2.447]
[1723619101778,12.72,145.46,145.4,2.447]
[1723619102401,6.8771,145.41,145.4,2.447]
[1723619102908,0.12549,145.45,145.4,2.447]
[1723619103125,6.8763,145.43,145.4,2.447]
[1723619103584,45.0,145.42,145.4,2.447]
[1723619103973,6.8771,145.41,145.4,2.447]
[1723619104171,51.8771,145.41,145.4,2.447]
[1723619104370,52.00259,145.41,145.4,2.447]
[1723619104596,52.37906,145.41,145.4,2.447]
[1723619105772,6.8802,145.35,145.31,24.0856]
[1723619105978,51.8808,145.34,145.28,52.4859]
[1723619106187,51.8808,145.34,145.28,39.7659]
[1723619106499,51.8808,145.34,145.3,6.8822]
[1723619107389,51.8808,145.34,145.29,6.8826]
[1723619107997,51.8808,145.34,145.3,6.8822]
[1723619108476,1.72047816,145.33,145.28,39.7659]
[1723619108881,1.72061605,145.32,145.28,39.7659]
[1723619109276,7.38386,145.31,145.28,17.2078]
[1723619109478,45.0,145.3,145.26,6.884]
[1723619110090,45.0,145.3,145.27,6.8837]
[1723619110502,45.0,145.3,145.26,6.884]
[1723619110799,45.0,145.3,145.25,24.0953]
[1723619110800,8.60369375,145.29,145.25,24.0953]
[1723619110978,6.8828,145.29,145.25,24.0953]
[1723619111176,6.8833,145.28,145.25,17.2108]
[1723619112477,1.72095507,145.29,145.25,17.2108]
[1723619112478,6.8829,145.29,145.25,24.0954]
[1723619112979,7.25857,145.31,145.27,6.8837]
[1723619113190,6.8816,145.32,145.28,6.8832]
[1723619114183,6.8818,145.31,145.27,24.0926]
[1723619115219,6.8818,145.31,145.28,6.8832]
[1723619115891,6.8818,145.31,145.27,24.0927]
[1723619117599,6.8823,145.3,145.27,17.2091]
[1723619117816,6.8823,145.3,145.26,6.884]
[1723619121318,0.12549,145.31,145.24,53.9484]
[1723619121518,6.882,145.31,145.27,6.8836]
[1723619121814,6.8818,145.31,145.27,6.8835]
[1723619122323,6.8832,145.29,145.25,6.8845]
[1723619122528,6.8833,145.28,145.24,6.8849]
[1723619123519,6.8833,145.28,145.25,6.8846]
[1723619124226,6.8844,145.26,145.22,0.8259098]
[1723619124427,6.8839,145.27,145.23,6.8855]
[1723619125916,6.8842,145.26,145.22,24.9271098]
[1723619128244,6.8842,145.26,145.23,6.8855]
[1723619129543,17.33379,145.28,145.22,0.8259098]
[1723619129718,45.37647,145.27,145.22,0.8259098]
[1723619129920,6.885,145.25,145.22,0.8259098]
[1723619130826,7.00979,145.26,145.22,0.8259098]
[1723619131633,7.00979,145.26,145.22,7.7118098]
[1723619132425,6.8847,145.25,145.22,0.8259098]
[1723619132632,6.8851,145.24,145.22,0.8259098]
[1723619133246,0.12549,145.26,145.22,0.8259098]
[1723619133247,6.8856,145.23,145.22,0.8259098]
[1723619134537,6.8853,145.24,145.22,0.8259098]
[1723619134740,6.8856,145.23,145.22,0.8259098]
[1723619135123,0.25098,145.25,145.22,0.8259098]
[1723619135327,7.13658,145.23,145.22,0.8259098]
[1723619135630,54.10945138,145.23,145.22,0.8259098]
[1723619137056,52.38756,145.23,145.22,0.8259098]
[1723619137225,0.12549,145.23,145.22,0.8259098]
[1723619137425,0.12549,145.24,145.22,0.8259098]
[1723619137622,52.13618,145.24,145.22,0.8259098]
[1723619138637,45.25098,145.24,145.22,0.8259098]
[1723619138949,6.8843,145.26,145.22,7.7119098]
[1723619140059,17.2089,145.28,145.22,7.7119098]
[1723619140060,6.8839,145.27,145.23,6.8856]
[1723619141571,6.8842,145.26,145.22,24.9269098]
[1723619142882,7.00929,145.27,145.23,6.8855]
[1723619143961,6.8842,145.26,145.23,6.8855]
[1723619144466,6.8842,145.26,145.22,24.9269098]
[1723619146578,6.8842,145.26,145.23,6.8855]
[1723619147153,6.8842,145.26,145.22,24.9269098]
[1723619147357,6.8852,145.24,145.22,0.8259098]
[1723619148390,6.8856,145.23,145.22,0.8259098]
[1723619148679,7.26207,145.23,145.22,0.8259098]
[1723619148880,54.10944265,145.23,145.22,0.8259098]
[1723619149259,52.38756,145.23,145.22,0.8259098]
[1723619151382,65.0382,145.28,145.22,0.8259098]
[1723619151576,45.12549,145.27,145.22,0.8259098]
[1723619151779,6.8849,145.25,145.22,0.8259098]
[1723619151969,0.12549,145.24,145.22,0.8259098]
[1723619152282,7.01059,145.24,145.22,0.8259098]
[1723619153064,2.76911898,145.29,145.22,18.0406098]
[1723619153265,17.2056,145.31,145.22,18.0406098]
[1723619153465,6.8841,145.27,145.23,6.8852]
[1723619153978,6.8842,145.26,145.23,6.8852]
[1723619154159,6.8834,145.28,145.25,6.8846]
[1723619154366,6.8834,145.28,145.24,24.0976]
[1723619155086,6.8837,145.27,145.24,24.0976]
[1723619156986,6.884,145.27,145.23,6.8854]
[1723619157287,6.884,145.27,145.24,6.8851]
[1723619157668,6.8834,145.28,145.24,6.8851]
[1723619157865,6.8814,145.32,145.28,6.883]
[1723619159101,6.882,145.31,145.27,24.0923]
[1723619159463,17.1999,145.35,145.27,17.2087]
[1723619159686,6.8809,145.33,145.29,6.8825]
[1723619160274,6.8805,145.34,145.3,6.8822]
[1723619160490,6.8809,145.33,145.29,24.089]
[1723619160684,6.8815,145.32,145.29,17.2066]
[1723619161387,17.2012,145.34,145.27,15.5748]
[1723619161576,6.8822,145.31,145.27,15.5748]
[1723619161889,45.0,145.3,145.27,15.5748]
[1723619162096,51.8824,145.3,145.27,15.5748]
[1723619162396,51.8824,145.3,145.26,24.0934]
[1723619162694,51.8824,145.3,145.23,32.9594]
[1723619162695,1.72079851,145.29,145.23,32.9594]
[1723619162870,6.884,145.27,145.23,39.8447]
[1723619163401,6.8834,145.28,145.24,6.885]
[1723619163998,6.8837,145.27,145.24,6.885]
[1723619164712,6.8834,145.28,145.24,6.885]
[1723619164877,0.25098,145.29,145.23,15.7464]
[1723619165070,6.8842,145.26,145.22,7.7118098]
[1723619165580,6.8842,145.26,145.22,24.9269098]
[1723619165778,6.8839,145.27,145.23,6.8855]
[1723619166169,6.8846,145.25,145.22,18.0410098]
[1723619166569,7.13528,145.26,145.22,24.9270098]
[1723619166775,51.8848,145.25,145.22,0.8259098]
[1723619167670,45.0,145.25,145.22,0.8259098]
[1723619167876,0.37647,145.26,145.22,0.8259098]
[1723619168185,7.26067,145.26,145.22,7.7118098]
[1723619168576,0.25098,145.26,145.23,6.8855]
[1723619168776,6.8842,145.26,145.23,6.8855]
[1723619169085,6.884,145.27,145.23,6.8855]
[1723619169507,6.8842,145.26,145.23,6.8855]
[1723619169874,0.37647,145.28,145.24,6.8849]
[1723619169875,0.25098,145.28,145.24,6.8849]
[1723619170081,7.13448,145.28,145.24,6.8849]
[1723619170294,6.882,145.31,145.27,6.8836]
[1723619170497,33.784,145.33,145.27,6.8836]
[1723619170498,6.8814,145.32,145.28,6.8831]
[1723619171379,6.882,145.31,145.27,24.0925]
[1723619171581,6.882,145.31,145.27,17.209]
[1723619171794,45.0,145.3,145.25,23.3283]
[1723619171980,6.8836,145.28,145.25,16.4438]
[1723619172181,6.8838,145.27,145.25,16.4438]
[1723619172409,6.884,145.27,145.22,0.8259098]
[1723619172611,6.8834,145.28,145.23,6.8853]
[1723619172790,6.8837,145.27,145.23,6.8853]
[1723619173406,6.8833,145.28,145.24,6.885]
[1723619173812,7.00829,145.29,145.25,6.8846]
[1723619174008,0.12549,145.29,145.23,17.2138]
[1723619174212,0.25098,145.29,145.23,24.099]
[1723619174510,6.8845,145.26,145.22,7.7118098]
[1723619174713,6.8845,145.26,145.22,0.8259098]
[1723619174897,7.13478,145.27,145.22,0.8259098]
[1723619175797,7.13478,145.27,145.23,6.8856]
[1723619176312,6.8842,145.26,145.22,7.7119098]
[1723619177086,6.8848,145.25,145.22,0.8259098]
[1723619177708,6.8852,145.24,145.22,0.8259098]
[1723619177926,52.01069,145.24,145.22,0.8259098]
[1723619178126,45.12549,145.24,145.22,0.8259098]
[1723619178418,45.0,145.24,145.22,0.8259098]
[1723619178622,8.73277109,145.23,145.22,0.8259098]
[1723619178818,53.98375109,145.23,145.22,0.8259098]
[1723619179488,52.26207,145.23,145.22,0.8259098]
[1723619180817,0.12549,145.23,145.22,0.8259098]
[1723619181019,45.37647,145.24,145.22,0.8259098]
[1723619181224,52.26167,145.24,145.22,0.8259098]
[1723619182293,6.8856,145.23,145.22,0.8259098]
[1723619184708,52.01079,145.24,145.22,0.8259098]
[1723619185617,45.12549,145.24,145.22,0.8259098]
[1723619185817,6.8852,145.24,145.22,0.8259098]
[1723619187117,6.8856,145.23,145.22,0.8259098]
[1723619188816,6.8853,145.24,145.22,0.8259098]
[1723619190702,6.8856,145.23,145.22,0.8259098]
[1723619191918,52.13658,145.23,145.22,0.8259098]
[1723619192121,52.26207,145.23,145.22,0.8259098]
[1723619194415,52.38756,145.23,145.22,0.8259098]
[1723619197140,45.12549,145.23,145.22,0.8259098]
[1723619197339,17.2099,145.27,145.22,0.8259098]
[1723619197340,6.8854,145.24,145.22,0.8259098]
[1723619197544,6.8856,145.23,145.22,0.8259098]
[1723619197859,51.8856,145.23,145.22,0.8259098]
[1723619198044,52.01109,145.23,145.22,0.8259098]
[1723619198641,52.01109,145.23,145.15,24.1117]
[1723619198642,6.8876,145.19,145.15,24.1117]
[1723619198941,0.12549,145.2,145.14,16.4818]
[1723619199532,0.12549,145.21,145.13,6.0144]
[1723619199712,6.8891,145.16,145.13,6.0144]
[1723619199916,6.8885,145.17,145.13,12.9046]
[1723619204533,6.8885,145.17,145.13,6.8902]
[1723619205258,0.37647,145.18,145.14,17.2246]
[1723619205259,0.25098,145.18,145.14,17.2246]
[1723619205427,26.24308578,145.23,145.14,17.2246]
[1723619205630,0.12549,145.22,145.14,17.2246]
[1723619206247,6.8878,145.19,145.15,6.8894]
[1723619206648,6.888,145.18,145.14,24.1143]
[1723619209664,6.888,145.18,145.15,6.8894]
[1723619209874,15.6184,145.25,145.15,38.1888]
[1723619210160,6.8861,145.22,145.18,17.2197]
[1723619210665,6.8861,145.22,145.18,24.1075]
[1723619211043,6.8866,145.21,145.18,17.2197]
[1723619211253,6.8861,145.22,145.18,17.2197]
[1723619211941,6.8857,145.23,145.19,6.8872]
[1723619212761,6.8862,145.22,145.18,24.1075]
[1723619213135,6.8851,145.24,145.2,6.8866]
[1723619213344,6.8851,145.24,145.2,24.1042]
[1723619213865,0.37647,145.25,145.17,49.0802]
[1723619214182,0.25098,145.24,145.17,49.0802]
[1723619214464,6.8858,145.23,145.19,6.8871]
[1723619214765,0.25098,145.24,145.2,6.8868]
[1723619215263,7.13628,145.24,145.2,6.8868]
[1723619215450,6.8856,145.23,145.19,24.1053]
[1723619215764,6.8861,145.22,145.19,24.1053]
[1723619215974,6.8858,145.23,145.19,24.1053]
[1723619216345,6.8862,145.22,145.19,17.218]
[1723619217078,6.8862,145.22,145.18,6.8878]
[1723619217488,6.8858,145.23,145.19,6.8874]
[1723619219465,6.8861,145.22,145.18,24.1074]
[1723619219684,7.01209,145.21,145.18,17.2197]
[1723619220253,7.01119,145.23,145.19,6.8873]
[1723619220569,0.12549,145.23,145.2,6.8869]
[1723619220768,45.12549,145.23,145.2,6.8869]
[1723619221156,52.01109,145.23,145.19,6.8873]
[1723619221560,6.8861,145.22,145.18,24.1075]
[1723619221961,52.01129,145.23,145.19,6.8874]
[1723619222159,7.01129,145.23,145.19,6.8874]
[1723619222583,7.01099,145.24,145.2,6.8869]
[1723619223154,6.8845,145.26,145.17,31.86]
[1723619223367,6.8846,145.25,145.22,6.8859]
[1723619223860,6.8866,145.21,145.16,15.8758]
[1723619224063,6.8866,145.21,145.17,6.8881]
[1723619224887,6.8866,145.21,145.16,33.097]
[1723619225076,6.8866,145.21,145.17,6.8881]
[1723619225966,6.8861,145.22,145.18,6.8879]
[1723619228697,6.8861,145.22,145.18,24.1078]
[1723619228885,45.0,145.24,145.18,17.2199]
[1723619229066,6.8854,145.24,145.2,6.8866]
[1723619230100,6.8856,145.23,145.18,17.2199]
[1723619230394,6.8856,145.23,145.19,6.8873]
[1723619231269,6.8856,145.23,145.2,6.887]
[1723619232012,6.8856,145.23,145.19,6.8874]
[1723619234094,6.8847,145.25,145.21,6.8862]
[1723619235719,6.8852,145.24,145.21,6.8862]
[1723619235903,6.8849,145.25,145.21,6.8862]
[1723619236409,6.8856,145.23,145.2,17.2176]
[1723619236717,6.8861,145.22,145.18,6.8879]
[1723619236903,6.8857,145.23,145.19,6.8874]
[1723619238312,6.8857,145.23,145.19,24.1061]
[1723619239218,7.01069,145.24,145.2,6.8867]
[1723619239419,6.8852,145.24,145.2,6.8867]
[1723619241220,6.8857,145.23,145.19,24.106]
[1723619241404,6.8853,145.24,145.2,6.887]
[1723619241802,0.25098,145.25,145.21,6.8864]
[1723619241803,6.8848,145.25,145.21,6.8864]
[1723619242115,6.8848,145.25,145.21,24.1027]
[1723619251201,15.4006,145.29,145.23,17.2139]
[1723619251410,6.8835,145.28,145.24,6.8848]
[1723619251612,17.2056,145.31,145.23,36.8594]
[1723619251613,6.8838,145.27,145.23,36.8594]
[1723619254631,15.2698,145.33,145.25,12.76]
[1723619254834,6.8822,145.31,145.27,24.0924]
[1723619255127,6.8815,145.32,145.28,6.8831]
[1723619255527,6.88,145.35,145.3,6.8819]
[1723619255830,33.0417,145.41,145.31,29.964]
[1723619256126,6.8781,145.39,145.34,6.88]
[1723619256337,6.8785,145.38,145.34,7.41080723]
[1723619256908,6.879,145.37,145.34,0.53080723]
[1723619257103,29.9555,145.39,145.31,6.2714]
[1723619257414,6.8812,145.33,145.29,6.8826]
[1723619257620,6.8812,145.33,145.27,53.0666]
[1723619257960,6.8817,145.32,145.27,59.95]
[1723619258134,6.8809,145.33,145.28,6.8831]
[1723619258341,0.12549,145.36,145.3,6.8822]
[1723619258522,45.50196,145.36,145.29,29.9664]
[1723619259628,45.50196,145.36,145.29,17.2064]
[1723619259931,45.50196,145.36,145.29,24.0889]
[1723619260118,6.8808,145.34,145.29,24.0889]
[1723619260317,6.88,145.35,145.29,17.2064]
[1723619260529,51.8804,145.34,145.3,6.8821]
[1723619260707,6.8804,145.35,145.29,17.2064]
[1723619261219,45.0,145.36,145.32,6.8813]
[1723619261534,51.8797,145.36,145.32,6.8813]
[1723619261740,45.0,145.36,145.29,6.8824]
[1723619261941,6.8807,145.34,145.29,6.8824]
[1723619262115,6.8807,145.34,145.3,6.8822]
[1723619263135,6.88,145.35,145.31,6.8816]
[1723619263446,6.88,145.35,145.3,17.2053]
[1723619263732,51.8804,145.34,145.3,24.0874]
[1723619265212,45.0,145.34,145.31,6.8818]
[1723619265411,6.88,145.35,145.31,6.8818]
[1723619266411,6.8796,145.36,145.31,6.8818]
[1723619266930,6.8799,145.35,145.31,6.8818]
[1723619268714,6.8797,145.36,145.31,6.8818]
[1723619268948,6.8799,145.35,145.31,6.8818]
[1723619269650,23.02251129,145.41,145.34,17.2004]
[1723619269831,23.02251129,145.41,145.34,24.0803]
[1723619270016,15.8484,145.41,145.34,24.0803]
[1723619270554,6.8787,145.38,145.34,24.0803]
[1723619270719,47.7184,145.41,145.33,6.8807]
[1723619270720,6.8793,145.37,145.33,6.8807]
[1723619270920,64.9113,145.41,145.32,6.8812]
[1723619271253,31.87,145.37,145.31,17.2037]
[1723619271416,6.8801,145.35,145.31,24.0853]
[1723619271843,45.0,145.34,145.31,24.0853]
[1723619272126,6.8801,145.35,145.31,24.0853]
[1723619273451,6.8817,145.32,145.28,24.0906]
[1723619273667,6.8823,145.3,145.27,22.1893]
[1723619273833,6.8821,145.31,145.27,22.1893]
[1723619274160,6.8823,145.3,145.26,6.8838]
[1723619274453,0.12549,145.32,145.25,24.0953]
[1723619274766,6.8828,145.29,145.25,17.2108]
[1723619275252,6.8834,145.28,145.24,6.8848]
[1723619275550,6.8834,145.28,145.23,13.4899]
[1723619276352,0.12549,145.29,145.22,17.2147]
[1723619276648,0.25098,145.29,145.22,17.2147]
[1723619276855,6.8838,145.27,145.22,24.1006]
[1723619277949,6.8838,145.27,145.23,6.8856]
[1723619279635,6.8843,145.26,145.22,17.2147]
[1723619279829,0.25098,145.28,145.19,23.5033]
[1723619279830,6.8847,145.25,145.19,23.5033]
[1723619280154,6.8847,145.25,145.2,6.8869]
[1723619280522,6.8847,145.25,145.19,23.5033]
[1723619280523,6.8842,145.26,145.19,23.5033]
[1723619280727,6.8842,145.26,145.21,6.8864]
[1723619281531,6.8851,145.24,145.2,6.8869]
[1723619281760,6.8856,145.23,145.19,24.1054]
[1723619282059,6.8852,145.24,145.2,6.8869]
[1723619282556,7.26127,145.25,145.21,6.8865]
[1723619283667,6.8838,145.27,145.22,6.8859]
[1723619284641,6.8842,145.26,145.21,24.1025]
[1723619285841,13.02098,145.27,145.21,17.216]
[1723619286028,45.0,145.26,145.21,17.216]
[1723619286441,51.8846,145.26,145.21,24.1021]
[1723619286836,51.8846,145.26,145.22,6.8859]
[1723619287528,45.0,145.26,145.23,6.8852]
[1723619287834,7.00889,145.28,145.23,6.8852]
[1723619289231,6.8837,145.27,145.23,6.8852]
[1723619290255,6.8837,145.27,145.22,6.8859]
[1723619290436,6.8843,145.26,145.21,24.1024]
[1723619291361,6.8848,145.25,145.21,24.1024]
[1723619294367,6.8843,145.26,145.21,24.1024]
[1723619294572,6.8847,145.25,145.21,24.1024]
[1723619295370,6.8842,145.26,145.21,24.1024]
[1723619296581,12.77,145.24,145.17,6.8883]
[1723619296872,45.37647,145.23,145.18,6.8879]
[1723619297991,6.8862,145.22,145.18,6.8879]
[1723619298174,51.6253,145.28,145.19,6.8873]
[1723619298356,6.8855,145.24,145.2,6.887]
[1723619298740,6.8855,145.24,145.19,24.1059]
[1723619299186,6.8836,145.28,145.17,12.77]
[1723619299362,6.8843,145.26,145.22,6.8859]
[1723619299558,27.9083,145.29,145.2,32.7329]
[1723619300363,6.8835,145.28,145.23,6.8853]
[1723619300560,6.8835,145.28,145.24,6.885]
[1723619300868,6.8838,145.27,145.23,6.8856]
[1723619301971,15.1383,145.29,145.24,6.8851]
[1723619302154,6.8823,145.3,145.24,17.2123]
[1723619302556,6.8823,145.3,145.25,6.8845]
[1723619304088,6.8829,145.29,145.24,24.0972]
[1723619304485,30.10019,145.31,145.24,17.2123]
[1723619304689,30.10019,145.31,145.22,6.2791]
[1723619304690,6.884,145.27,145.22,13.165]
[1723619304987,6.884,145.27,145.23,6.8854]
[1723619305361,6.8832,145.28,145.24,6.8849]
[1723619306357,6.8828,145.29,145.24,6.8849]
[1723619306774,6.8834,145.28,145.24,6.8849]
[1723619308512,45.37647,145.3,145.27,6.8836]
[1723619308513,45.25098,145.3,145.27,6.8836]
[1723619308798,6.8814,145.32,145.27,6.8834]
[1723619308983,6.8814,145.32,145.28,6.8832]
[1723619309187,6.8818,145.31,145.27,17.2091]
[1723619310310,6.8818,145.31,145.27,24.0927]
[1723619310670,12.77,145.33,145.25,12.77]
[1723619310886,6.8828,145.29,145.24,24.0971]
[1723619311999,6.8828,145.29,145.25,6.8846]
[1723619312298,6.8823,145.3,145.25,6.8846]
[1723619312502,52.00729,145.32,145.26,17.2102]
[1723619312710,0.12549,145.31,145.26,17.2102]
[1723619313275,6.8823,145.3,145.26,17.2102]
[1723619313503,6.8819,145.31,145.26,24.0941]
[1723619314418,6.8825,145.3,145.26,24.0941]
[1723619316505,6.8819,145.31,145.27,6.8836]
[1723619319416,29.2667,145.36,145.28,17.208]
[1723619319601,6.8807,145.34,145.29,6.8825]
[1723619320400,6.8809,145.33,145.29,6.8825]
[1723619320601,6.8815,145.32,145.28,24.091]
[1723619320995,6.8818,145.31,145.26,6.8839]
[1723619321326,6.8832,145.28,145.25,32.4818]
[1723619321622,6.8829,145.29,145.25,39.3663]
[1723619321920,51.8824,145.3,145.26,6.8841]
[1723619322294,45.0,145.3,145.26,6.8841]
[1723619326733,45.0,145.3,145.27,6.8837]
[1723619327619,7.00689,145.32,145.28,6.8832]
[1723619328330,0.12549,145.32,145.28,6.8832]
[1723619328631,45.25098,145.32,145.28,6.8832]
[1723619330115,52.13228,145.32,145.28,6.8832]
[1723619330311,6.8805,145.34,145.29,6.8827]
[1723619330518,6.8809,145.33,145.28,6.8832]
[1723619330825,6.8814,145.32,145.28,6.8832]
[1723619334719,6.8814,145.32,145.27,24.0926]
[1723619334912,12.77,145.34,145.27,24.0926]
[1723619334913,6.882,145.31,145.27,24.0926]
[1723619335238,6.882,145.31,145.27,17.2089]
[1723619335550,6.8824,145.3,145.26,6.8842]
[1723619336723,6.8824,145.3,145.25,22.1551]
[1723619336935,6.8824,145.3,145.26,6.8841]